bitfinex/quotes_BTCUSD_20250601
["timestamp","ask_amount","ask_price","bid_price","bid_amount"]
[1748761855316,0.02877329,104260.0,104250.0,0.54742406]
[1748761855528,0.02877329,104260.0,104250.0,0.55042406]
[1748761856304,0.03836414,104260.0,104250.0,0.55042406]
[1748761858233,0.38902439,104270.0,104260.0,0.21101028]
[1748761858509,0.59042413,104270.0,104260.0,0.5346676]
[1748761858972,0.60001452,104270.0,104260.0,0.86791576]
[1748761859714,0.60001452,104270.0,104260.0,0.86891576]
[1748761860909,0.60001452,104270.0,104260.0,0.87091576]
[1748761863961,0.60001452,104270.0,104260.0,0.54725863]
[1748761864402,0.60001452,104270.0,104260.0,0.55684957]
[1748761864836,0.60001452,104270.0,104260.0,0.58380218]
[1748761865078,0.60001452,104270.0,104260.0,0.55684957]
[1748761865293,0.60001452,104270.0,104260.0,0.90745943]
[1748761865428,0.60001452,104270.0,104260.0,0.90745935]
[1748761865940,0.60001452,104270.0,104260.0,0.89847493]
[1748761866172,0.60001452,104270.0,104260.0,0.90745904]
[1748761866972,0.60001452,104270.0,104260.0,0.90745912]
[1748761867400,0.60001452,104270.0,104260.0,0.87989989]
[1748761867592,0.60001452,104270.0,104260.0,0.87091576]
[1748761867912,0.60001452,104270.0,104260.0,0.57421124]
[1748761869026,0.60001452,104270.0,104260.0,0.57421154]
[1748761869466,0.60001452,104270.0,104260.0,0.5742117]
[1748761869673,0.60001452,104270.0,104260.0,0.57421169]
[1748761869899,0.5904245,104270.0,104260.0,0.56462066]
[1748761870317,0.5904245,104270.0,104260.0,0.56462096]
[1748761870510,0.5904245,104270.0,104260.0,0.5376676]
[1748761870725,0.5904245,104270.0,104260.0,0.5646211]
[1748761871230,0.5904245,104270.0,104260.0,0.55502997]
[1748761871579,0.5904245,104270.0,104260.0,0.55503127]
[1748761872421,0.5904245,104270.0,104260.0,0.55503133]
[1748761873007,0.5904245,104270.0,104260.0,0.56462246]
[1748761873519,0.5904245,104270.0,104260.0,0.56462333]
[1748761873985,0.5904245,104270.0,104260.0,0.57421436]
[1748761874213,0.5904245,104270.0,104260.0,0.55624416]
[1748761874388,0.5904245,104270.0,104260.0,0.57421526]
[1748761874542,0.5904245,104270.0,104260.0,0.54725863]
[1748761874744,0.5904245,104270.0,104260.0,0.57421645]
[1748761874966,0.38902402,104270.0,104260.0,0.58380721]
[1748761875183,0.38902402,104270.0,104260.0,0.5838072]
[1748761875184,0.40820369,104270.0,104260.0,0.5838072]
[1748761875364,0.71810447,104270.0,104260.0,0.58380738]
[1748761875581,0.71810447,104270.0,104260.0,0.59339823]
[1748761876206,0.71810447,104270.0,104260.0,0.5933987]
[1748761876379,0.42738447,104270.0,104260.0,0.59340086]
[1748761876543,0.70851399,104270.0,104260.0,0.91705753]
[1748761876751,0.71810447,104270.0,104260.0,0.90746739]
[1748761877118,0.71810447,104270.0,104260.0,0.58381025]
[1748761877613,0.71810438,104270.0,104260.0,0.593401]
[1748761878033,0.71810438,104270.0,104260.0,0.59340187]
[1748761878478,0.41779399,104270.0,104260.0,0.59340187]
[1748761878672,0.42738438,104270.0,104260.0,0.5934036]
[1748761878875,0.42738438,104270.0,104260.0,0.58441576]
[1748761879099,0.42738438,104270.0,104260.0,0.59340367]
[1748761879314,0.42738438,104270.0,104260.0,0.9170608]
[1748761879544,0.42738438,104270.0,104260.0,0.91706089]
[1748761879754,0.39861367,104270.0,104260.0,0.91706089]
[1748761880161,0.39861367,104270.0,104260.0,0.90807268]
[1748761880390,0.40820388,104270.0,104260.0,0.91706047]
[1748761880802,0.39861367,104270.0,104260.0,0.91706047]
[1748761881014,0.40820378,104270.0,104260.0,0.91706047]
[1748761881339,0.40820378,104270.0,104260.0,0.91705813]
[1748761881976,0.38902374,104270.0,104260.0,0.90807112]
[1748761882188,0.4082036,104270.0,104260.0,0.91705789]
[1748761882519,0.4082036,104270.0,104260.0,0.91705764]
[1748761882846,0.39861358,104270.0,104260.0,0.91705764]
[1748761883049,0.4082036,104270.0,104260.0,0.91705764]
[1748761883260,0.38902384,104270.0,104260.0,0.91705764]
[1748761883469,0.38902384,104270.0,104260.0,1.01291194]
[1748761883470,0.37943409,104270.0,104260.0,1.01291194]
[1748761883712,0.37320207,104270.0,104260.0,1.78106873]
[1748761883950,0.01917591,104290.0,104280.0,0.22055891]
[1748761884233,0.80531508,104300.0,104290.0,0.21094995]
[1748761884481,0.19173681,104310.0,104300.0,0.21092954]
[1748761884482,0.02875885,104310.0,104300.0,0.21092954]
[1748761884692,0.01917076,104320.0,104310.0,0.22049585]
[1748761884903,0.50240855,104320.0,104310.0,0.57107444]
[1748761885114,0.50240855,104320.0,104310.0,0.54231476]
[1748761885115,0.49282331,104320.0,104310.0,0.54231476]
[1748761885330,0.48323779,104320.0,104310.0,0.54231412]
[1748761885562,0.48328653,104320.0,104310.0,0.54231412]
[1748761885780,0.48328653,104320.0,104310.0,0.0268848]
[1748761885990,0.00958662,104310.0,104300.0,0.53458593]
[1748761886205,0.00958653,104310.0,104300.0,0.85311076]
[1748761886410,0.01917287,104310.0,104300.0,0.86268511]
[1748761886862,0.02875903,104310.0,104300.0,0.86245961]
[1748761887086,0.03834565,104310.0,104300.0,0.86245961]
[1748761887305,0.03834565,104310.0,104300.0,0.86245172]
[1748761887744,0.03834565,104310.0,104300.0,0.86345172]
[1748761888175,0.03834501,104310.0,104300.0,0.86444647]
[1748761888399,0.02875848,104310.0,104300.0,0.86443596]
[1748761888624,0.04178616,104310.0,104300.0,0.86443596]
[1748761888838,0.05137223,104310.0,104300.0,0.86442337]
[1748761889046,0.04178607,104310.0,104300.0,0.86442337]
[1748761889265,0.0322,104310.0,104300.0,0.86442326]
[1748761889468,0.04178607,104310.0,104300.0,0.86442326]
[1748761889692,0.04178607,104310.0,104300.0,0.83758806]
[1748761889899,0.04178607,104310.0,104300.0,0.8644117]
[1748761890306,0.04178607,104310.0,104300.0,0.86440617]
[1748761890538,0.04178607,104310.0,104300.0,0.86440339]
[1748761890720,0.04178607,104310.0,104300.0,0.86440347]
[1748761890943,0.06095903,104310.0,104300.0,0.57276347]
[1748761891137,0.06095903,104310.0,104300.0,0.86440347]
[1748761891348,0.06095894,104310.0,104300.0,0.86440303]
[1748761891772,0.06095885,104310.0,104300.0,0.86440303]
[1748761892422,0.06095885,104310.0,104300.0,0.86439447]
[1748761892833,0.06095885,104310.0,104300.0,0.86438932]
[1748761893042,0.07054547,104310.0,104300.0,0.86438932]
[1748761893261,0.07054547,104310.0,104300.0,0.86434932]
[1748761893789,0.07054547,104310.0,104300.0,0.86434741]
[1748761893994,0.07054547,104310.0,104300.0,0.8643436]
[1748761894194,0.06095885,104310.0,104300.0,0.86434359]
[1748761894372,0.06095885,104310.0,104300.0,0.86434263]
[1748761894599,0.07054547,104310.0,104300.0,0.86434263]
[1748761894805,0.07054547,104310.0,104300.0,0.86434051]
[1748761894987,0.07054547,104310.0,104300.0,0.87392759]
[1748761895188,0.06095885,104310.0,104300.0,0.87392602]
[1748761895394,0.06095885,104310.0,104300.0,0.86433894]
[1748761895532,0.27186835,104310.0,104300.0,0.86433894]
[1748761895741,0.27186835,104310.0,104300.0,0.86433654]
[1748761896410,0.0322,104310.0,104300.0,1.29320955]
[1748761896625,0.0322,104310.0,104300.0,1.26642116]
[1748761896830,0.02611114,104310.0,104300.0,1.65642116]
[1748761897035,0.02611114,104310.0,104300.0,1.67427409]
[1748761897249,0.02611114,104310.0,104300.0,1.67327409]
[1748761897446,0.02611114,104310.0,104300.0,1.62227409]
[1748761897654,0.02611114,104310.0,104300.0,1.67427409]
[1748761897860,0.02611114,104310.0,104300.0,1.67726768]
[1748761898116,0.02611114,104310.0,104300.0,1.35383605]
[1748761898292,0.02611114,104310.0,104300.0,1.67726768]
[1748761899317,0.02611114,104310.0,104300.0,1.04040442]
[1748761899518,0.02611114,104310.0,104300.0,1.68726768]
[1748761900269,0.02611114,104310.0,104300.0,1.68725772]
[1748761900470,0.02611114,104310.0,104300.0,1.68725803]
[1748761901115,0.02611114,104310.0,104300.0,1.68725443]
[1748761902028,0.02611114,104310.0,104300.0,1.39565443]
[1748761902227,0.02611114,104310.0,104300.0,1.68705443]
[1748761903145,0.02611114,104310.0,104300.0,1.68705127]
[1748761903878,0.02611114,104310.0,104300.0,1.77545127]
[1748761904057,0.02611114,104310.0,104300.0,1.77545132]
[1748761904898,0.02611114,104310.0,104300.0,1.77545243]
[1748761905108,0.02611114,104310.0,104300.0,1.77545247]
[1748761905644,0.02611114,104310.0,104300.0,1.77545467]
[1748761905978,0.02611114,104310.0,104300.0,1.77545468]
[1748761906385,0.02611114,104310.0,104300.0,1.77545802]
[1748761906825,0.02611114,104310.0,104300.0,1.78437643]
[1748761907195,0.02611114,104310.0,104300.0,1.77545802]
[1748761907547,0.02611114,104310.0,104300.0,1.78437645]
[1748761907685,0.02611114,104310.0,104300.0,1.73437645]
[1748761907895,0.02611114,104310.0,104300.0,1.78437645]
[1748761908454,0.01051114,104310.0,104300.0,1.77546826]
[1748761908664,0.01051114,104310.0,104300.0,1.78439181]
[1748761909030,4.874e-05,104320.0,104310.0,0.22049548]
[1748761909237,4.874e-05,104320.0,104310.0,0.98998369]
[1748761910112,4.874e-05,104320.0,104310.0,0.98998756]
[1748761910466,4.874e-05,104320.0,104310.0,0.9899918]
[1748761910711,4.874e-05,104320.0,104310.0,0.66657642]
[1748761912214,4.874e-05,104320.0,104310.0,0.99000805]
[1748761912414,4.874e-05,104320.0,104310.0,0.99101327]
[1748761912625,4.874e-05,104320.0,104310.0,0.9930422]
[1748761913500,4.874e-05,104320.0,104310.0,0.99305027]
[1748761913704,4.874e-05,104320.0,104310.0,0.97516416]
[1748761913879,4.874e-05,104320.0,104310.0,0.9930664]
[1748761914299,0.01544874,104320.0,104310.0,0.96621304]
[1748761914505,0.03184874,104320.0,104310.0,0.99307688]
[1748761914980,0.03184874,104320.0,104310.0,0.99307719]
[1748761915525,0.03184874,104320.0,104310.0,0.99307842]
[1748761915781,0.03184874,104320.0,104310.0,0.99307841]
[1748761916410,0.03184874,104320.0,104310.0,0.99307999]
[1748761916634,0.03184874,104320.0,104310.0,0.97516921]
[1748761916836,0.03184874,104320.0,104310.0,0.99273152]
[1748761917017,0.03184874,104320.0,104310.0,0.97481917]
[1748761917353,0.03184874,104320.0,104310.0,0.99273156]
[1748761917980,0.03184874,104320.0,104310.0,0.99273256]
[1748761919256,0.01644874,104320.0,104310.0,0.97482138]
[1748761919474,0.01644874,104320.0,104310.0,0.99273815]
[1748761919686,4.874e-05,104320.0,104310.0,0.99273815]
[1748761920526,4.874e-05,104320.0,104310.0,0.97482138]
[1748761920731,4.874e-05,104320.0,104310.0,0.66948836]
[1748761920940,4.874e-05,104320.0,104310.0,1.04916836]
[1748761921147,0.0096338,104320.0,104310.0,1.04920836]
[1748761921352,0.01921913,104320.0,104310.0,1.04920836]
[1748761921566,0.01921904,104320.0,104310.0,1.04920836]
[1748761921783,0.01921904,104320.0,104310.0,1.0492141]
[1748761921997,0.01921904,104320.0,104310.0,0.42549133]
[1748761922239,0.01921904,104320.0,104310.0,0.75833446]
[1748761922447,0.02880447,104320.0,104310.0,0.75833446]
[1748761922674,0.02851675,104320.0,104310.0,0.75833657]
[1748761922866,0.03803718,104320.0,104310.0,0.75833657]
[1748761923084,0.00928118,104320.0,104310.0,0.75833657]
[1748761923336,0.00928118,104320.0,104310.0,1.08159318]
[1748761923552,0.01886642,104320.0,104310.0,1.08159318]
[1748761923799,0.00928118,104320.0,104310.0,1.08159318]
[1748761924253,0.20128668,104330.0,104320.0,0.21088919]
[1748761924254,0.22045625,104330.0,104320.0,0.21088919]
[1748761924474,0.22045625,104330.0,104320.0,0.88430381]
[1748761924690,0.22045625,104330.0,104320.0,0.8843039]
[1748761924691,0.02875444,104330.0,104320.0,0.8843039]
[1748761924910,0.02875444,104330.0,104320.0,0.90347503]
[1748761925128,0.02875444,104330.0,104320.0,0.89388951]
[1748761925331,0.01916947,104330.0,104320.0,0.89388951]
[1748761925531,0.01916947,104330.0,104320.0,0.90347503]
[1748761925922,0.01916947,104330.0,104320.0,0.91306046]
[1748761926175,0.01916892,104330.0,104320.0,0.90348163]
[1748761926390,0.02875159,104340.0,104330.0,0.20128419]
[1748761926597,0.23006486,104340.0,104330.0,0.55144889]
[1748761926802,0.22048136,104340.0,104330.0,0.55146705]
[1748761927015,0.22048136,104340.0,104330.0,0.55149466]
[1748761927442,0.00963213,104340.0,104330.0,0.57066352]
[1748761927633,4.873e-05,104340.0,104330.0,0.55270131]
[1748761927875,0.02121545,104340.0,104330.0,0.5706619]
[1748761928061,0.02121545,104340.0,104330.0,0.57066175]
[1748761928405,0.02121545,104340.0,104330.0,0.57066088]
[1748761928612,0.02221545,104340.0,104330.0,0.57066088]
[1748761929068,0.02221545,104340.0,104330.0,0.57065928]
[1748761929204,0.02021545,104340.0,104330.0,0.57065928]
[1748761929411,0.01921535,104340.0,104330.0,0.57065916]
[1748761929663,0.02879894,104340.0,104330.0,0.55270019]
[1748761929868,0.01921535,104340.0,104330.0,0.57265908]
[1748761930176,0.01921535,104340.0,104330.0,0.57265725]
[1748761930398,0.01921535,104340.0,104330.0,0.54572075]
[1748761930607,0.01921535,104340.0,104330.0,0.5736558]
[1748761931058,0.01921535,104340.0,104330.0,0.57365567]
[1748761931209,0.01921535,104340.0,104330.0,0.57365553]
[1748761931421,0.00963195,104340.0,104330.0,0.57365553]
[1748761931619,0.01921526,104340.0,104330.0,0.57365553]
[1748761931845,0.02879866,104340.0,104330.0,0.57365505]
[1748761932139,0.02820701,104340.0,104330.0,0.57365505]
[1748761932564,0.02820701,104340.0,104330.0,0.57365376]
[1748761932912,0.02820701,104340.0,104330.0,0.55569842]
[1748761933118,0.02820701,104340.0,104330.0,0.56467547]
[1748761933363,0.0090403,104340.0,104330.0,0.5736524]
[1748761933591,0.0186237,104340.0,104330.0,0.57365185]
[1748761933799,0.02820729,104340.0,104330.0,0.57365185]
[1748761933946,0.0090403,104340.0,104330.0,0.57365187]
[1748761934159,0.0186237,104340.0,104330.0,0.5736519]
[1748761934360,0.0186237,104340.0,104330.0,0.25038435]
[1748761934691,0.02820729,104340.0,104330.0,0.5736519]
[1748761934885,0.0186237,104340.0,104330.0,0.56467486]
[1748761935114,0.0186237,104340.0,104330.0,0.57365163]
[1748761935309,0.03779088,104340.0,104330.0,0.57365107]
[1748761935564,0.03779088,104340.0,104330.0,0.57365098]
[1748761936202,0.03779088,104340.0,104330.0,0.57365088]
[1748761936403,0.03779088,104340.0,104330.0,0.57365028]
[1748761936736,0.0282072,104340.0,104330.0,0.57365028]
[1748761937017,0.03779097,104340.0,104330.0,0.57365028]
[1748761937259,0.03779097,104340.0,104330.0,0.58323449]
[1748761937683,0.03779097,104340.0,104330.0,0.58323402]
[1748761937887,0.03779088,104340.0,104330.0,0.58323403]
[1748761938086,0.03779088,104340.0,104330.0,0.58323389]
[1748761938322,0.0282072,104340.0,104330.0,0.58323389]
[1748761938736,0.03779079,104340.0,104330.0,0.58323389]
[1748761938946,0.03779079,104340.0,104330.0,0.58323376]
[1748761939146,0.0282072,104340.0,104330.0,0.58323376]
[1748761939375,0.03779079,104340.0,104330.0,0.58323314]
[1748761939580,0.04737447,104340.0,104330.0,0.58323314]
[1748761939901,0.03779079,104340.0,104330.0,0.58323314]
[1748761940110,0.06247465,104340.0,104330.0,0.57364882]
[1748761940319,0.07797465,104340.0,104330.0,0.57364882]
[1748761940902,0.07797465,104340.0,104330.0,0.54672084]
[1748761941106,0.07797465,104340.0,104330.0,0.57364848]
[1748761941512,0.07797465,104340.0,104330.0,0.5646726]
[1748761941709,0.07797465,104340.0,104330.0,0.5736485]
[1748761941912,0.07797465,104340.0,104330.0,0.58323291]
[1748761942071,0.07797456,104340.0,104330.0,0.59281723]
[1748761942277,0.07797447,104340.0,104330.0,0.59281723]
[1748761942509,0.07797447,104340.0,104330.0,0.59281707]
[1748761942689,0.07851803,104340.0,104330.0,0.59281689]
[1748761942898,0.06893417,104340.0,104330.0,0.59281689]
[1748761943556,0.07851794,104340.0,104330.0,0.59281689]
[1748761943757,0.07851794,104340.0,104330.0,0.58323257]
[1748761943917,0.07851794,104340.0,104330.0,0.59281687]
[1748761944116,0.07851794,104340.0,104330.0,0.58384114]
[1748761944349,0.0401834,104340.0,104330.0,0.59281687]
[1748761944507,0.04976708,104340.0,104330.0,0.59281687]
[1748761944906,0.04976708,104340.0,104330.0,0.56406363]
[1748761945120,0.05935104,104340.0,104330.0,0.57364814]
[1748761945703,0.05935104,104340.0,104330.0,0.57364822]
[1748761946300,0.04976708,104340.0,104330.0,0.57364822]
[1748761946504,0.05935094,104340.0,104330.0,0.57364822]
[1748761946731,0.05935094,104340.0,104330.0,0.57359406]
[1748761946952,0.05935094,104340.0,104330.0,0.57359411]
[1748761947157,0.05935094,104340.0,104330.0,0.57359422]
[1748761947337,0.05935094,104340.0,104330.0,0.58317863]
[1748761947484,0.04976708,104340.0,104330.0,0.59276288]
[1748761947684,0.05935085,104340.0,104330.0,0.58317856]
[1748761948133,0.05935085,104340.0,104330.0,0.58317862]
[1748761948285,0.05935085,104340.0,104330.0,0.59276294]
[1748761948685,0.05935085,104340.0,104330.0,0.59276329]
[1748761948903,0.04976708,104340.0,104330.0,0.59276337]
[1748761949064,0.05935085,104340.0,104330.0,0.59276337]
[1748761949286,0.05935085,104340.0,104330.0,0.58378742]
[1748761949447,0.05935085,104340.0,104330.0,0.59276337]
[1748761949649,0.03426708,104340.0,104330.0,0.56583551]
[1748761949854,0.03426699,104340.0,104330.0,0.59276364]
[1748761950044,0.04385067,104340.0,104330.0,0.59276364]
[1748761950678,0.06025067,104340.0,104330.0,0.59276364]
[1748761950880,0.06025076,104340.0,104330.0,0.59276393]
[1748761951455,0.06025076,104340.0,104330.0,0.5831797]
[1748761951662,0.05066699,104340.0,104330.0,0.59276402]
[1748761951867,0.0410834,104340.0,104330.0,0.59276402]
[1748761952276,0.05066699,104340.0,104330.0,0.59276422]
[1748761952512,0.05066699,104340.0,104330.0,0.58378808]
[1748761952713,0.05066699,104340.0,104330.0,0.59276436]
[1748761953095,0.05066699,104340.0,104330.0,0.5927656]
[1748761953308,0.05066699,104340.0,104330.0,0.58378932]
[1748761953454,0.05066699,104340.0,104330.0,0.59276703]
[1748761953658,0.06025076,104340.0,104330.0,0.59276884]
[1748761953914,0.06025067,104340.0,104330.0,0.59276885]
[1748761954341,0.0410834,104340.0,104330.0,0.59276894]
[1748761954484,0.05066708,104340.0,104330.0,0.59276894]
[1748761954688,0.05066708,104340.0,104330.0,0.57360031]
[1748761955231,0.06025094,104340.0,104330.0,0.58318472]
[1748761955443,0.05066708,104340.0,104330.0,0.58319282]
[1748761955843,0.05066708,104340.0,104330.0,0.58319287]
[1748761956070,0.0410834,104340.0,104330.0,0.59277719]
[1748761956251,0.0410834,104340.0,104330.0,0.57481596]
[1748761956522,0.0410834,104340.0,104330.0,0.59277791]
[1748761956740,0.02598331,104340.0,104330.0,0.59277791]
[1748761956940,0.00958331,104340.0,104330.0,0.59277791]
[1748761957321,0.01916681,104340.0,104330.0,0.59277791]
[1748761957550,0.01916681,104340.0,104330.0,0.59277803]
[1748761957964,0.01916681,104340.0,104330.0,0.56583551]
[1748761958194,0.01916681,104340.0,104330.0,0.57481711]
[1748761958375,0.01916681,104340.0,104330.0,0.59278032]
[1748761958743,0.01916681,104340.0,104330.0,0.59278]
[1748761959172,0.01916671,104340.0,104330.0,0.59277935]
[1748761959687,0.00958258,104350.0,104340.0,0.22043208]
[1748761959883,0.02874764,104350.0,104340.0,0.8842193]
[1748761960119,0.03833068,104350.0,104340.0,0.8842193]
[1748761960462,0.01916534,104350.0,104340.0,0.88421957]
[1748761960667,0.02874829,104350.0,104340.0,0.86685941]
[1748761960895,0.04444829,104350.0,104340.0,0.88481785]
[1748761961229,0.04444829,104350.0,104340.0,0.89379705]
[1748761961230,0.06084829,104350.0,104340.0,0.89379705]
[1748761961471,0.06084829,104350.0,104340.0,0.89379701]
[1748761961849,0.05126534,104350.0,104340.0,0.9033806]
[1748761962051,0.06084829,104350.0,104340.0,0.89379523]
[1748761962252,0.06084829,104350.0,104340.0,0.90337882]
[1748761962634,0.05126534,104350.0,104340.0,0.88542033]
[1748761962836,0.05126488,104350.0,104340.0,0.91295602]
[1748761963022,0.06084737,104350.0,104340.0,0.91295435]
[1748761963222,0.05126479,104350.0,104340.0,0.91295386]
[1748761963422,0.06084746,104350.0,104340.0,0.91295315]
[1748761963887,0.06084746,104350.0,104340.0,0.91295017]
[1748761964289,0.05126479,104350.0,104340.0,0.9129445]
[1748761964432,0.05126479,104350.0,104340.0,0.92241519]
[1748761964644,0.05126488,104350.0,104340.0,1.21517519]
[1748761964851,0.05126488,104350.0,104340.0,1.21717519]
[1748761965478,0.05126479,104350.0,104340.0,1.21717519]
[1748761965932,0.05126479,104350.0,104340.0,1.21717161]
[1748761966250,0.05126479,104350.0,104340.0,1.2081951]
[1748761966453,0.05126479,104350.0,104340.0,1.21716415]
[1748761966660,0.05126479,104350.0,104340.0,1.21716275]
[1748761966882,0.05126479,104350.0,104340.0,1.21715997]
[1748761967120,0.05126479,104350.0,104340.0,1.22100523]
[1748761967518,0.05126479,104350.0,104340.0,1.22100427]
[1748761968337,0.05126479,104350.0,104340.0,1.19410226]
[1748761968546,0.05126479,104350.0,104340.0,1.22100182]
[1748761969056,0.05126479,104350.0,104340.0,1.22100027]
[1748761969480,0.0321,104350.0,104340.0,1.22100027]
[1748761969682,0.0416823,104350.0,104340.0,1.22100027]
[1748761970045,0.0416823,104350.0,104340.0,1.22099867]
[1748761970290,0.0416823,104350.0,104340.0,1.22099702]
[1748761970649,0.0416823,104350.0,104340.0,1.20306718]
[1748761970895,0.0416823,104350.0,104340.0,1.22099566]
[1748761971454,0.05126469,104350.0,104340.0,1.22099502]
[1748761971832,0.0416823,104350.0,104340.0,1.22099502]
[1748761972035,0.05126469,104350.0,104340.0,1.22099502]
[1748761973212,0.05126469,104350.0,104340.0,1.21203077]
[1748761973390,0.05126469,104350.0,104340.0,0.92923408]
[1748761973593,0.05126469,104350.0,104340.0,1.22083408]
[1748761973911,0.06084718,104350.0,104340.0,1.20290557]
[1748761974111,0.06084718,104350.0,104340.0,1.22083147]
[1748761974250,0.06084718,104350.0,104340.0,1.22083151]
[1748761974732,0.06084718,104350.0,104340.0,1.22083104]
[1748761975305,0.06084718,104350.0,104340.0,1.22083103]
[1748761976042,0.05126469,104350.0,104340.0,1.22083103]
[1748761976248,0.06084727,104350.0,104340.0,1.22083103]
[1748761976388,0.02874727,104350.0,104340.0,1.21136034]
[1748761976582,0.02874727,104350.0,104340.0,1.19343449]
[1748761976847,0.01916469,104350.0,104340.0,1.21136042]
[1748761977055,0.01916469,104350.0,104340.0,1.2023975]
[1748761977285,0.01916469,104350.0,104340.0,1.21136046]
[1748761977789,0.02874718,104350.0,104340.0,0.56493368]
[1748761978003,0.02874718,104350.0,104340.0,1.21136046]
[1748761978397,0.02874718,104350.0,104340.0,1.21136103]
[1748761978539,0.02874718,104350.0,104340.0,1.21136162]
[1748761979194,0.02874718,104350.0,104340.0,1.21136192]
[1748761979352,0.02874718,104350.0,104340.0,1.21136253]
[1748761979560,0.02874718,104350.0,104340.0,1.19343502]
[1748761979926,0.22999363,104350.0,104340.0,0.23500143]
[1748761980153,0.24341849,104350.0,104340.0,0.03373643]
[1748761980605,0.24341849,104350.0,104340.0,0.03374087]
[1748761980781,0.24341849,104350.0,104340.0,0.03374143]
[1748761981288,0.24341849,104350.0,104340.0,0.00684526]
[1748761981512,0.20124571,104350.0,104340.0,0.0337417]
[1748761982041,0.20124571,104350.0,104340.0,0.03374303]
[1748761982242,0.49292571,104350.0,104340.0,0.03374303]
[1748761982591,0.49292571,104350.0,104340.0,0.03374278]
[1748761982801,0.49292571,104350.0,104340.0,0.03374369]
[1748761983024,0.49292571,104350.0,104340.0,0.03374402]
[1748761983234,0.49292571,104350.0,104340.0,0.03374359]
[1748761983955,0.50892571,104350.0,104340.0,0.02477748]
[1748761984179,0.21724571,104350.0,104340.0,0.01581186]
[1748761984383,0.21724571,104350.0,104340.0,0.03374472]
[1748761984753,0.21724571,104350.0,104340.0,0.03374609]
[1748761985049,0.23264571,104350.0,104340.0,0.03374609]
[1748761985451,0.23264571,104350.0,104340.0,0.03374569]
[1748761985813,0.23264571,104350.0,104340.0,0.03374719]
[1748761986210,0.23264571,104350.0,104340.0,0.03374677]
[1748761986607,0.23264571,104350.0,104340.0,0.03374679]
[1748761986836,0.23264571,104350.0,104340.0,0.01581259]
[1748761987043,0.23264571,104350.0,104340.0,0.03374724]
[1748761988383,0.23264571,104350.0,104340.0,0.03374682]
[1748761988619,0.23264571,104350.0,104340.0,0.03374726]
[1748761989070,0.21724571,104350.0,104340.0,0.03374726]
[1748761989245,0.20124571,104350.0,104340.0,0.03374726]
[1748761990267,0.20124571,104350.0,104340.0,0.22542787]
[1748761990671,0.20124571,104350.0,104340.0,0.20749363]
[1748761990904,0.20124571,104350.0,104340.0,0.54864097]
[1748761992009,0.20124571,104350.0,104340.0,0.54864014]
[1748761993354,0.20124571,104350.0,104340.0,0.54863836]
[1748761993967,0.20124571,104350.0,104340.0,0.54863755]
[1748761994169,0.20124571,104350.0,104340.0,0.5396716]
[1748761994334,0.20124571,104350.0,104340.0,0.54863748]
[1748761994525,0.20124571,104350.0,104340.0,0.54863736]
[1748761995431,0.20124571,104350.0,104340.0,0.54863691]
[1748761996045,0.20124571,104350.0,104340.0,0.22542352]
[1748761996424,0.20124571,104350.0,104340.0,0.54863691]
[1748761996797,0.20124571,104350.0,104340.0,0.54863687]
[1748761997307,0.19166267,104350.0,104340.0,0.54863691]
[1748761997471,0.19166267,104350.0,104340.0,0.54863698]
[1748761997677,0.19166267,104350.0,104340.0,0.54863726]
[1748761998502,0.19166267,104350.0,104340.0,0.54863736]
[1748761999449,0.19166267,104350.0,104340.0,0.52173969]
[1748761999670,0.19166267,104350.0,104340.0,0.53967249]
[1748762000057,0.19166267,104350.0,104340.0,0.54863888]
[1748762000571,0.19166267,104350.0,104340.0,0.54863903]
[1748762000975,0.19166267,104350.0,104340.0,0.55822308]
[1748762001143,0.20124562,104350.0,104340.0,0.5582234]
[1748762001553,0.20124562,104350.0,104340.0,0.56780736]
[1748762001750,0.20124562,104350.0,104340.0,0.56780794]
[1748762001958,0.01916562,104350.0,104340.0,0.56780794]
[1748762002294,0.02874866,104350.0,104340.0,0.57739198]
[1748762003289,0.22041133,104350.0,104340.0,0.56780812]
[1748762003515,0.22041133,104350.0,104340.0,0.57739198]
[1748762003717,0.22041133,104350.0,104340.0,0.57739711]
[1748762003953,0.21082866,104350.0,104340.0,0.22543185]
[1748762004164,0.21082866,104350.0,104340.0,0.2350159]
[1748762004364,0.21082866,104350.0,104340.0,0.23501787]
[1748762004514,0.21082866,104350.0,104340.0,0.22543382]
[1748762004701,0.21082866,104350.0,104340.0,0.23501787]
[1748762005325,0.21082866,104350.0,104340.0,0.23502021]
[1748762005492,0.21082866,104350.0,104340.0,0.23502081]
[1748762005714,0.20124571,104350.0,104340.0,0.22543676]
[1748762005939,0.20124571,104350.0,104340.0,0.5582342]
[1748762006941,0.20124571,104350.0,104340.0,0.55824136]
[1748762007754,0.20124571,104350.0,104340.0,0.55824685]
[1748762008239,0.20124571,104350.0,104340.0,0.54927249]
[1748762008442,0.20124571,104350.0,104340.0,0.55824703]
[1748762009473,0.20124571,104350.0,104340.0,0.54029828]
[1748762009705,0.20124571,104350.0,104340.0,0.56784816]
[1748762010067,0.20124571,104350.0,104340.0,0.5582642]
[1748762010517,0.20124571,104350.0,104340.0,0.54868858]
[1748762011405,0.20124571,104350.0,104340.0,0.55827278]
[1748762012412,0.21754571,104350.0,104340.0,0.54868873]
[1748762012649,0.21754571,104350.0,104340.0,0.55827278]
[1748762012837,0.23314571,104350.0,104340.0,0.55827278]
[1748762013038,0.23314571,104350.0,104340.0,0.54030686]
[1748762013247,0.23314571,104350.0,104340.0,0.55827313]
[1748762014004,0.23314571,104350.0,104340.0,0.5678571]
[1748762014460,0.24272847,104350.0,104340.0,0.55827315]
[1748762014803,0.24272847,104350.0,104340.0,0.5678571]
[1748762015507,0.24272847,104350.0,104340.0,0.56785711]
[1748762015713,0.24272847,104350.0,104340.0,0.55887398]
[1748762015914,0.24272847,104350.0,104340.0,0.56785712]
[1748762016459,0.24272847,104350.0,104340.0,0.56785713]
[1748762016598,0.24272847,104350.0,104340.0,0.55827317]
[1748762017182,0.24272847,104350.0,104340.0,0.56785714]
[1748762017687,0.24272847,104350.0,104340.0,0.56785715]
[1748762018110,0.24272847,104350.0,104340.0,0.55827319]
[1748762018883,0.24272847,104350.0,104340.0,0.56785715]
[1748762019986,0.24272847,104350.0,104340.0,0.54989085]
[1748762020195,0.24272847,104350.0,104340.0,0.56785716]
[1748762020389,0.24272847,104350.0,104340.0,0.56785717]
[1748762020879,0.24272847,104350.0,104340.0,0.5409077]
[1748762021072,0.24272847,104350.0,104340.0,0.56785718]
[1748762021273,0.24272847,104350.0,104340.0,0.54989086]
[1748762021412,0.24272847,104350.0,104340.0,0.56785719]
[1748762023018,0.22642847,104350.0,104340.0,0.56785719]
[1748762023222,0.21082847,104350.0,104340.0,0.57744105]
[1748762023408,0.21082847,104350.0,104340.0,0.5678572]
[1748762023608,0.21082847,104350.0,104340.0,0.56785721]
[1748762024051,0.21082847,104350.0,104340.0,0.55827325]
[1748762024596,0.21082847,104350.0,104340.0,0.56785721]
[1748762024924,0.21082847,104350.0,104340.0,0.55887404]
[1748762025125,0.21082847,104350.0,104340.0,0.5678572]
[1748762025389,0.21082847,104350.0,104340.0,0.56785719]
[1748762025898,0.21082847,104350.0,104340.0,0.55827323]
[1748762026241,0.21082847,104350.0,104340.0,0.56785719]